{"text_format":"1","workbook":"xlsx","n_sheets":3,"sheets":["Tex-140","RX","Revisions"],"not_rendered":{"charts":0,"images":1,"macros":1,"external_links":0,"defined_names":2549,"comments":2,"pivot_tables":0},"unopened":[],"bounds":{"document_bytes":16777216,"sheet_cells":100000,"rows_first":2000,"rows_last":500,"rows_between":2000,"halvings":0,"cell_chars":16384,"cell_head_chars":4096},"cells_cut":0,"cells_raw":0,"read":"whole","date_system":"1900"}

{"sheet":"Tex-140","index":0,"n_rows":146,"n_cols":38,"rows_kept":146,"cut":false,"hidden":false,"merged":[[146,1,146,5],[22,18,23,18],[35,1,35,2],[144,1,144,2],[22,17,23,17],[31,1,31,21],[26,10,26,12],[22,10,23,12],[24,7,24,9],[25,7,25,9],[22,13,23,16],[34,14,34,15],[35,14,35,15],[26,3,26,4],[24,5,24,6],[25,5,25,6],[12,1,12,5],[13,1,13,5],[11,6,11,11],[12,6,12,11],[7,1,7,5],[8,1,8,5],[9,1,9,5],[10,1,10,5],[7,6,7,11],[8,6,8,11],[9,6,9,11],[10,6,10,11],[11,1,11,5],[13,6,13,11],[18,14,18,18],[15,1,15,5],[14,6,14,21],[15,6,15,21],[14,1,14,5],[16,6,16,11],[16,12,16,16],[16,17,16,21],[18,1,18,5],[18,19,18,21],[18,8,18,10],[18,11,18,13],[18,6,18,7],[16,1,16,5],[7,12,7,16],[8,12,8,16],[13,17,13,21],[11,12,11,16],[12,12,12,16],[13,12,13,16],[9,12,9,16],[10,12,10,16],[11,17,11,21],[12,17,12,21],[7,17,7,21],[8,17,8,21],[9,17,9,21],[10,17,10,21],[28,15,28,17],[34,3,34,13],[32,1,32,21],[33,1,33,21],[26,7,26,9],[37,1,37,6],[36,8,36,9],[37,8,37,9],[37,10,37,12],[22,5,23,6],[22,3,23,4],[24,3,24,4],[25,3,25,4],[35,3,35,13],[22,7,23,9],[24,13,24,16],[25,13,25,16],[24,10,24,12],[25,10,25,12],[26,13,26,16],[26,5,26,6]]}
["TxDOT Manuals >",null,null,"Tex-140-E"]
[null,"TEXAS DEPARTMENT OF TRANSPORTATION",null,null,null,null,null,null,null,null,null,null,null,null,null,null,null,null,null,null,null,null,28]
[null,null,null,null,null,null,null,null,null,null,null,null,null,null,null,null,null,null,null,null,null,null,1]
[null,null,null,null,null,null,null,null,null,null,null,null,null,null,null,null,null,null,null,null,null,null,"tx140.xlsm::45502.433032"]
[null,"MEASURING THICKNESS OF PAVEMENT LAYER",null,null,null,null,null,null,null,null,null,null,null,null,null,null,null,null,null,null,null,null,2428]
[null,"Tex-140-E"]
[null,null,null,null,null,null,null,null,null,null,null,null,null,null,null,null,null,null,null,null,null,{"$f":"\"TX140 - File Version: \" & TEXT(MID(sn,SEARCH(\"::\",sn,1)+2,20),\"mm/dd/yy hh:mm:ss\")","v":"TX140 - File Version: 07/29/24 10:23:34"}]
[null,"SAMPLE ID:",null,null,null,null,null,null,null,null,null,null,"SAMPLED DATE:"]
[null,"TEST NUMBER:",null,null,null,null,null,null,null,null,null,null,"LETTING DATE:"]
[null,"SAMPLE STATUS:",null,null,null,null,null,null,null,null,null,null,"CONTROLLING CSJ:"]
[null,"COUNTY:",null,null,null,null,null,null,null,null,null,null,"SPEC YEAR:"]
[null,"SAMPLED BY:",null,null,null,null,null,null,null,null,null,null,"SPEC ITEM:"]
[null,"SAMPLE LOCATION:",null,null,null,null,null,null,null,null,null,null,"SPECIAL PROVISION:"]
[null,"MATERIAL CODE:",null,null,null,null,null,null,null,null,null,null,"GRADE:"]
[null,"MATERIAL NAME:"]
[null,"PRODUCER:",null,null,null,null,""]
[null,"AREA ENGINEER:",null,null,null,null,null,null,null,null,null,null,"PROJECT MANAGER:"]
[]
[null,"COURSE\\LIFT:",null,null,null,null,null,null,"STATION:",null,null,null,null,null,"DIST. FROM CL:"]
[]
[null,null,null,null,null,null,null,null,null,null,false]
[]
[null,null,null,"Date",null,"Station",null,"Ref. Marker",null,null,"Direction/Location",null,null,"Description",null,null,null,"SET",{"$f":"\"Depth \" &IF(SpecYear=\"\",\"\",IF($R$11=\"1995\",\"(mm)\",\"(in)\"))","v":"Depth "}]
[]
[null,null,null,null,null,null,null,null,null,null,null,null,null,null,null,null,null,1]
[null,null,null,null,null,null,null,null,null,null,null,null,null,null,null,null,null,2]
[null,null,null,null,null,null,null,null,null,null,null,null,null,null,null,null,null,3]
[]
[null,null,null,null,null,null,null,null,null,null,null,null,null,null,null,"Average Depth:",null,null,{"$f":"IF(ISERROR(AVERAGE(S25:S27)),\"\",AVERAGE(S25:S27))","v":""}]
[]
[null,"Remarks:",null,{"$f":"NOW()","v":"2024-07-29T10:23:34.860"}]
[]
[]
[]
[null,"Test Method:",null,"Tested By:",null,null,null,null,null,null,null,null,null,null,"Tested Date:"]
[null,"TX140"]
[null,"Test Stamp Code:",null,null,null,null,null,"Omit Test:","Completed Date:",null,"Reviewed By:"]
[]
[]
[null,"Test Number","DATE","STATION","REFERENCE MARKER","DIRECTION / LOCATION","DESCRIPTION",{"$f":"\"DEPTH (SET 1) \" &IF(SpecYear=\"\",\"\",IF($R$11=\"1995\",\"(mm)\",\"(in)\"))","v":"DEPTH (SET 1) "},{"$f":"\"DEPTH (SET 2) \" &IF(SpecYear=\"\",\"\",IF($R$11=\"1995\",\"(mm)\",\"(in)\"))","v":"DEPTH (SET 2) "},{"$f":"\"DEPTH (SET 3) \" &IF(SpecYear=\"\",\"\",IF($R$11=\"1995\",\"(mm)\",\"(in)\"))","v":"DEPTH (SET 3) "},{"$f":"\"AVERAGE DEPTH \" &IF(SpecYear=\"\",\"\",IF($R$11=\"1995\",\"(mm)\",\"(in)\"))","v":"AVERAGE DEPTH "},"TX140 - Tested By","Test Date","Stamp Code","Omit","Complete Date","Remarks","DATE (SET 2)","STATION (SET 2)","REFERENCE MARKER (SET 2)","DIRECTION LOCATION (SET 2)","DESCRIPTION (SET 2)","DATE (SET 3)","STATION (SET 3)","REFERENCE MARKER (SET 3)","DIRECTION LOCATION (SET 3)","DESCRIPTION (SET 3)"]
[]
[null,"SMPL_TST_NBR","DATESET1_07","STATIONSET1_08","REFMARKERSET1_09","DIRECTIONLOCATIONSET1_10","DESCRIPTIONSET1_11","DEPTHSET1_12","DEPTHDET2_18","DEPTHSET3_24",null,"TESTED_BY_140_25","TEST_DATE_140_26","STMP_CD","OMIT_IND","ACTL_CMPL_DT","REMARKS_01","DATESET2_13","STATIONSET2_14","REFMARKERSET2_15","DIRECTIONLOCATIONSET2_16","DESCRIPTIONSET2_17","DATESET3_19","STATIONSET3_20","REFMARKERSET3_21","DIRECTIONLOCATIONSET3_22","DESCRIPTIONSET3_23","SMPL_ID","TST_METH","SPEC_YEAR_02","SPECIAL_PROVISION_03","GRADE_04","OLD_PRODUCER_05","COURSE_06","RVWR_UID","OLD_REVIEWER_27","AUTOTEMPLATE_28","AUTOTEMPLATE_28"]
[{"$f":"IF(COUNTBLANK(C43:AA43)=25,0,1)","v":0},"~AT001",null,null,null,null,null,null,null,null,{"$f":"IF(ISERROR((H43+I43+J43)/(N(H43<>\"\")+N(I43<>\"\")+N(J43<>\"\"))),\"\",(H43+I43+J43)/(N(H43<>\"\")+N(I43<>\"\")+N(J43<>\"\")))","v":""},null,null,null,null,null,null,null,null,null,null,null,null,null,null,null,null,"4651008SDEWITT*005","TX140",null,null,null,null,null,"CBRIGGS"]
[{"$f":"IF(COUNTBLANK(C44:AA44)=25,0,1)","v":0},"~AT002",null,null,null,null,null,null,null,null,"",null,null,null,null,null,null,null,null,null,null,null,null,null,null,null,null,"4651008SDEWITT*005","TX140",null,null,null,null,"SDEWITT","CBRIGGS"]
[0,"~AT003",null,null,null,null,null,null,null,null,"",null,null,null,null,null,null,null,null,null,null,null,null,null,null,null,null,"4651008SDEWITT*005","TX140",null,null,null,null,null,"CBRIGGS"]
[0,"~AT004",null,null,null,null,null,null,null,null,"",null,null,null,null,null,null,null,null,null,null,null,null,null,null,null,null,"4651008SDEWITT*005","TX140",null,null,null,null,null,"CBRIGGS"]
[0,"~AT005",null,null,null,null,null,null,null,null,"",null,null,null,null,null,null,null,null,null,null,null,null,null,null,null,null,"4651008SDEWITT*005","TX140",null,null,null,null,null,"CBRIGGS"]
[0,"~AT006",null,null,null,null,null,null,null,null,"",null,null,null,null,null,null,null,null,null,null,null,null,null,null,null,null,"4651008SDEWITT*005","TX140",null,null,null,null,null,"CBRIGGS"]
[0,"~AT007",null,null,null,null,null,null,null,null,"",null,null,null,null,null,null,null,null,null,null,null,null,null,null,null,null,"4651008SDEWITT*005","TX140",null,null,null,null,null,"SDEWITT"]
[0,"~AT008",null,null,null,null,null,null,null,null,"",null,null,null,null,null,null,null,null,null,null,null,null,null,null,null,null,"4651008SDEWITT*005","TX140",null,null,null,null,null,"SDEWITT"]
[0,"~AT009",null,null,null,null,null,null,null,null,"",null,null,null,null,null,null,null,null,null,null,null,null,null,null,null,null,"4651008SDEWITT*005","TX140",null,null,null,null,null,"SDEWITT"]
[0,"~AT010",null,null,null,null,null,null,null,null,"",null,null,null,null,null,null,null,null,null,null,null,null,null,null,null,null,"4651008SDEWITT*005","TX140",null,null,null,null,null,"SDEWITT"]
[0,"~AT011",null,null,null,null,null,null,null,null,"",null,null,null,null,null,null,null,null,null,null,null,null,null,null,null,null,"4651008SDEWITT*005","TX140",null,null,null,null,null,"SDEWITT"]
[0,"~AT012",null,null,null,null,null,null,null,null,"",null,null,null,null,null,null,null,null,null,null,null,null,null,null,null,null,"4651008SDEWITT*005","TX140",null,null,null,null,null,"SDEWITT"]
[0,"~AT013",null,null,null,null,null,null,null,null,"",null,null,null,null,null,null,null,null,null,null,null,null,null,null,null,null,"4651008SDEWITT*005","TX140",null,null,null,null,null,"SDEWITT"]
[0,"~AT014",null,null,null,null,null,null,null,null,"",null,null,null,null,null,null,null,null,null,null,null,null,null,null,null,null,"4651008SDEWITT*005","TX140"]
[0,"~AT015",null,null,null,null,null,null,null,null,"",null,null,null,null,null,null,null,null,null,null,null,null,null,null,null,null,"4651008SDEWITT*005","TX140"]
[0,"~AT016",null,null,null,null,null,null,null,null,"",null,null,null,null,null,null,null,null,null,null,null,null,null,null,null,null,"4651008SDEWITT*005","TX140"]
[0,"~AT017",null,null,null,null,null,null,null,null,"",null,null,null,null,null,null,null,null,null,null,null,null,null,null,null,null,"4651008SDEWITT*005","TX140"]
[0,"~AT018",null,null,null,null,null,null,null,null,"",null,null,null,null,null,null,null,null,null,null,null,null,null,null,null,null,"4651008SDEWITT*005","TX140"]
[0,"~AT019",null,null,null,null,null,null,null,null,"",null,null,null,null,null,null,null,null,null,null,null,null,null,null,null,null,"4651008SDEWITT*005","TX140"]
[0,"~AT020",null,null,null,null,null,null,null,null,"",null,null,null,null,null,null,null,null,null,null,null,null,null,null,null,null,"4651008SDEWITT*005","TX140"]
[0,"~AT021",null,null,null,null,null,null,null,null,"",null,null,null,null,null,null,null,null,null,null,null,null,null,null,null,null,"4651008SDEWITT*005","TX140"]
[0,"~AT022",null,null,null,null,null,null,null,null,"",null,null,null,null,null,null,null,null,null,null,null,null,null,null,null,null,"4651008SDEWITT*005","TX140"]
[0,"~AT023",null,null,null,null,null,null,null,null,"",null,null,null,null,null,null,null,null,null,null,null,null,null,null,null,null,"4651008SDEWITT*005","TX140"]
[0,"~AT024",null,null,null,null,null,null,null,null,"",null,null,null,null,null,null,null,null,null,null,null,null,null,null,null,null,"4651008SDEWITT*005","TX140"]
[0,"~AT025",null,null,null,null,null,null,null,null,"",null,null,null,null,null,null,null,null,null,null,null,null,null,null,null,null,"4651008SDEWITT*005","TX140"]
[0,"~AT026",null,null,null,null,null,null,null,null,"",null,null,null,null,null,null,null,null,null,null,null,null,null,null,null,null,"4651008SDEWITT*005","TX140"]
[0,"~AT027",null,null,null,null,null,null,null,null,"",null,null,null,null,null,null,null,null,null,null,null,null,null,null,null,null,"4651008SDEWITT*005","TX140"]
[0,"~AT028",null,null,null,null,null,null,null,null,"",null,null,null,null,null,null,null,null,null,null,null,null,null,null,null,null,"4651008SDEWITT*005","TX140"]
[0,"~AT029",null,null,null,null,null,null,null,null,"",null,null,null,null,null,null,null,null,null,null,null,null,null,null,null,null,"4651008SDEWITT*005","TX140"]
[0,"~AT030",null,null,null,null,null,null,null,null,"",null,null,null,null,null,null,null,null,null,null,null,null,null,null,null,null,"4651008SDEWITT*005","TX140"]
[0,"~AT031",null,null,null,null,null,null,null,null,"",null,null,null,null,null,null,null,null,null,null,null,null,null,null,null,null,"4651008SDEWITT*005","TX140"]
[0,"~AT032",null,null,null,null,null,null,null,null,"",null,null,null,null,null,null,null,null,null,null,null,null,null,null,null,null,"4651008SDEWITT*005","TX140"]
[0,"~AT033",null,null,null,null,null,null,null,null,"",null,null,null,null,null,null,null,null,null,null,null,null,null,null,null,null,"4651008SDEWITT*005","TX140"]
[0,"~AT034",null,null,null,null,null,null,null,null,"",null,null,null,null,null,null,null,null,null,null,null,null,null,null,null,null,"4651008SDEWITT*005","TX140"]
[0,"~AT035",null,null,null,null,null,null,null,null,"",null,null,null,null,null,null,null,null,null,null,null,null,null,null,null,null,"4651008SDEWITT*005","TX140"]
[0,"~AT036",null,null,null,null,null,null,null,null,"",null,null,null,null,null,null,null,null,null,null,null,null,null,null,null,null,"4651008SDEWITT*005","TX140"]
[0,"~AT037",null,null,null,null,null,null,null,null,"",null,null,null,null,null,null,null,null,null,null,null,null,null,null,null,null,"4651008SDEWITT*005","TX140"]
[0,"~AT038",null,null,null,null,null,null,null,null,"",null,null,null,null,null,null,null,null,null,null,null,null,null,null,null,null,"4651008SDEWITT*005","TX140"]
[0,"~AT039",null,null,null,null,null,null,null,null,"",null,null,null,null,null,null,null,null,null,null,null,null,null,null,null,null,"4651008SDEWITT*005","TX140"]
[0,"~AT040",null,null,null,null,null,null,null,null,"",null,null,null,null,null,null,null,null,null,null,null,null,null,null,null,null,"4651008SDEWITT*005","TX140"]
[0,"~AT041",null,null,null,null,null,null,null,null,"",null,null,null,null,null,null,null,null,null,null,null,null,null,null,null,null,"4651008SDEWITT*005","TX140"]
[0,"~AT042",null,null,null,null,null,null,null,null,"",null,null,null,null,null,null,null,null,null,null,null,null,null,null,null,null,"4651008SDEWITT*005","TX140"]
[0,"~AT043",null,null,null,null,null,null,null,null,"",null,null,null,null,null,null,null,null,null,null,null,null,null,null,null,null,"4651008SDEWITT*005","TX140"]
[0,"~AT044",null,null,null,null,null,null,null,null,"",null,null,null,null,null,null,null,null,null,null,null,null,null,null,null,null,"4651008SDEWITT*005","TX140"]
[0,"~AT045",null,null,null,null,null,null,null,null,"",null,null,null,null,null,null,null,null,null,null,null,null,null,null,null,null,"4651008SDEWITT*005","TX140"]
[0,"~AT046",null,null,null,null,null,null,null,null,"",null,null,null,null,null,null,null,null,null,null,null,null,null,null,null,null,"4651008SDEWITT*005","TX140"]
[0,"~AT047",null,null,null,null,null,null,null,null,"",null,null,null,null,null,null,null,null,null,null,null,null,null,null,null,null,"4651008SDEWITT*005","TX140"]
[0,"~AT048",null,null,null,null,null,null,null,null,"",null,null,null,null,null,null,null,null,null,null,null,null,null,null,null,null,"4651008SDEWITT*005","TX140"]
[0,"~AT049",null,null,null,null,null,null,null,null,"",null,null,null,null,null,null,null,null,null,null,null,null,null,null,null,null,"4651008SDEWITT*005","TX140"]
[0,"~AT050",null,null,null,null,null,null,null,null,"",null,null,null,null,null,null,null,null,null,null,null,null,null,null,null,null,"4651008SDEWITT*005","TX140"]
[0,"~AT051",null,null,null,null,null,null,null,null,"",null,null,null,null,null,null,null,null,null,null,null,null,null,null,null,null,"4651008SDEWITT*005","TX140"]
[0,"~AT052",null,null,null,null,null,null,null,null,"",null,null,null,null,null,null,null,null,null,null,null,null,null,null,null,null,"4651008SDEWITT*005","TX140"]
[0,"~AT053",null,null,null,null,null,null,null,null,"",null,null,null,null,null,null,null,null,null,null,null,null,null,null,null,null,"4651008SDEWITT*005","TX140"]
[0,"~AT054",null,null,null,null,null,null,null,null,"",null,null,null,null,null,null,null,null,null,null,null,null,null,null,null,null,"4651008SDEWITT*005","TX140"]
[0,"~AT055",null,null,null,null,null,null,null,null,"",null,null,null,null,null,null,null,null,null,null,null,null,null,null,null,null,"4651008SDEWITT*005","TX140"]
[0,"~AT056",null,null,null,null,null,null,null,null,"",null,null,null,null,null,null,null,null,null,null,null,null,null,null,null,null,"4651008SDEWITT*005","TX140"]
[0,"~AT057",null,null,null,null,null,null,null,null,"",null,null,null,null,null,null,null,null,null,null,null,null,null,null,null,null,"4651008SDEWITT*005","TX140"]
[0,"~AT058",null,null,null,null,null,null,null,null,"",null,null,null,null,null,null,null,null,null,null,null,null,null,null,null,null,"4651008SDEWITT*005","TX140"]
[0,"~AT059",null,null,null,null,null,null,null,null,"",null,null,null,null,null,null,null,null,null,null,null,null,null,null,null,null,"4651008SDEWITT*005","TX140"]
[0,"~AT060",null,null,null,null,null,null,null,null,"",null,null,null,null,null,null,null,null,null,null,null,null,null,null,null,null,"4651008SDEWITT*005","TX140"]
[0,"~AT061",null,null,null,null,null,null,null,null,"",null,null,null,null,null,null,null,null,null,null,null,null,null,null,null,null,"4651008SDEWITT*005","TX140"]
[0,"~AT062",null,null,null,null,null,null,null,null,"",null,null,null,null,null,null,null,null,null,null,null,null,null,null,null,null,"4651008SDEWITT*005","TX140"]
[0,"~AT063",null,null,null,null,null,null,null,null,"",null,null,null,null,null,null,null,null,null,null,null,null,null,null,null,null,"4651008SDEWITT*005","TX140"]
[0,"~AT064",null,null,null,null,null,null,null,null,"",null,null,null,null,null,null,null,null,null,null,null,null,null,null,null,null,"4651008SDEWITT*005","TX140"]
[0,"~AT065",null,null,null,null,null,null,null,null,{"$f":"IF(ISERROR((H107+I107+J107)/(N(H107<>\"\")+N(I107<>\"\")+N(J107<>\"\"))),\"\",(H107+I107+J107)/(N(H107<>\"\")+N(I107<>\"\")+N(J107<>\"\")))","v":""},null,null,null,null,null,null,null,null,null,null,null,null,null,null,null,null,"4651008SDEWITT*005","TX140"]
[{"$f":"IF(COUNTBLANK(C108:AA108)=25,0,1)","v":0},"~AT066",null,null,null,null,null,null,null,null,"",null,null,null,null,null,null,null,null,null,null,null,null,null,null,null,null,"4651008SDEWITT*005","TX140"]
[0,"~AT067",null,null,null,null,null,null,null,null,"",null,null,null,null,null,null,null,null,null,null,null,null,null,null,null,null,"4651008SDEWITT*005","TX140"]
[0,"~AT068",null,null,null,null,null,null,null,null,"",null,null,null,null,null,null,null,null,null,null,null,null,null,null,null,null,"4651008SDEWITT*005","TX140"]
[0,"~AT069",null,null,null,null,null,null,null,null,"",null,null,null,null,null,null,null,null,null,null,null,null,null,null,null,null,"4651008SDEWITT*005","TX140"]
[0,"~AT070",null,null,null,null,null,null,null,null,"",null,null,null,null,null,null,null,null,null,null,null,null,null,null,null,null,"4651008SDEWITT*005","TX140"]
[0,"~AT071",null,null,null,null,null,null,null,null,"",null,null,null,null,null,null,null,null,null,null,null,null,null,null,null,null,"4651008SDEWITT*005","TX140"]
[0,"~AT072",null,null,null,null,null,null,null,null,"",null,null,null,null,null,null,null,null,null,null,null,null,null,null,null,null,"4651008SDEWITT*005","TX140"]
[0,"~AT073",null,null,null,null,null,null,null,null,"",null,null,null,null,null,null,null,null,null,null,null,null,null,null,null,null,"4651008SDEWITT*005","TX140"]
[0,"~AT074",null,null,null,null,null,null,null,null,"",null,null,null,null,null,null,null,null,null,null,null,null,null,null,null,null,"4651008SDEWITT*005","TX140"]
[0,"~AT075",null,null,null,null,null,null,null,null,"",null,null,null,null,null,null,null,null,null,null,null,null,null,null,null,null,"4651008SDEWITT*005","TX140"]
[0,"~AT076",null,null,null,null,null,null,null,null,"",null,null,null,null,null,null,null,null,null,null,null,null,null,null,null,null,"4651008SDEWITT*005","TX140"]
[0,"~AT077",null,null,null,null,null,null,null,null,"",null,null,null,null,null,null,null,null,null,null,null,null,null,null,null,null,"4651008SDEWITT*005","TX140"]
[0,"~AT078",null,null,null,null,null,null,null,null,"",null,null,null,null,null,null,null,null,null,null,null,null,null,null,null,null,"4651008SDEWITT*005","TX140"]
[0,"~AT079",null,null,null,null,null,null,null,null,"",null,null,null,null,null,null,null,null,null,null,null,null,null,null,null,null,"4651008SDEWITT*005","TX140"]
[0,"~AT080",null,null,null,null,null,null,null,null,"",null,null,null,null,null,null,null,null,null,null,null,null,null,null,null,null,"4651008SDEWITT*005","TX140"]
[0,"~AT081",null,null,null,null,null,null,null,null,"",null,null,null,null,null,null,null,null,null,null,null,null,null,null,null,null,"4651008SDEWITT*005","TX140"]
[0,"~AT082",null,null,null,null,null,null,null,null,"",null,null,null,null,null,null,null,null,null,null,null,null,null,null,null,null,"4651008SDEWITT*005","TX140"]
[0,"~AT083",null,null,null,null,null,null,null,null,"",null,null,null,null,null,null,null,null,null,null,null,null,null,null,null,null,"4651008SDEWITT*005","TX140"]
[0,"~AT084",null,null,null,null,null,null,null,null,"",null,null,null,null,null,null,null,null,null,null,null,null,null,null,null,null,"4651008SDEWITT*005","TX140"]
[0,"~AT085",null,null,null,null,null,null,null,null,"",null,null,null,null,null,null,null,null,null,null,null,null,null,null,null,null,"4651008SDEWITT*005","TX140"]
[0,"~AT086",null,null,null,null,null,null,null,null,"",null,null,null,null,null,null,null,null,null,null,null,null,null,null,null,null,"4651008SDEWITT*005","TX140"]
[0,"~AT087",null,null,null,null,null,null,null,null,"",null,null,null,null,null,null,null,null,null,null,null,null,null,null,null,null,"4651008SDEWITT*005","TX140"]
[0,"~AT088",null,null,null,null,null,null,null,null,"",null,null,null,null,null,null,null,null,null,null,null,null,null,null,null,null,"4651008SDEWITT*005","TX140"]
[0,"~AT089",null,null,null,null,null,null,null,null,"",null,null,null,null,null,null,null,null,null,null,null,null,null,null,null,null,"4651008SDEWITT*005","TX140"]
[0,"~AT090",null,null,null,null,null,null,null,null,"",null,null,null,null,null,null,null,null,null,null,null,null,null,null,null,null,"4651008SDEWITT*005","TX140"]
[0,"~AT091",null,null,null,null,null,null,null,null,"",null,null,null,null,null,null,null,null,null,null,null,null,null,null,null,null,"4651008SDEWITT*005","TX140"]
[0,"~AT092",null,null,null,null,null,null,null,null,"",null,null,null,null,null,null,null,null,null,null,null,null,null,null,null,null,"4651008SDEWITT*005","TX140"]
[0,"~AT093",null,null,null,null,null,null,null,null,"",null,null,null,null,null,null,null,null,null,null,null,null,null,null,null,null,"4651008SDEWITT*005","TX140"]
[0,"~AT094",null,null,null,null,null,null,null,null,"",null,null,null,null,null,null,null,null,null,null,null,null,null,null,null,null,"4651008SDEWITT*005","TX140"]
[0,"~AT095",null,null,null,null,null,null,null,null,"",null,null,null,null,null,null,null,null,null,null,null,null,null,null,null,null,"4651008SDEWITT*005","TX140"]
[0,"~AT096",null,null,null,null,null,null,null,null,"",null,null,null,null,null,null,null,null,null,null,null,null,null,null,null,null,"4651008SDEWITT*005","TX140"]
[0,"~AT097",null,null,null,null,null,null,null,null,"",null,null,null,null,null,null,null,null,null,null,null,null,null,null,null,null,"4651008SDEWITT*005","TX140"]
[0,"~AT098",null,null,null,null,null,null,null,null,"",null,null,null,null,null,null,null,null,null,null,null,null,null,null,null,null,"4651008SDEWITT*005","TX140"]
[0,"~AT099",null,null,null,null,null,null,null,null,"",null,null,null,null,null,null,null,null,null,null,null,null,null,null,null,null,"4651008SDEWITT*005","TX140"]
[0,"~AT100",null,null,null,null,null,null,null,null,"",null,null,null,null,null,null,null,null,null,null,null,null,null,null,null,null,"4651008SDEWITT*005","TX140"]
[]
[null,"Locked By:",null,"TxDOT:","District:","Area:"]
[null,"",null,"","",""]
[null,"Authorized By:",null,null,null,null,"Authorized Date:"]

{"sheet":"RX","index":1,"n_rows":25,"n_cols":9,"rows_kept":25,"cut":false,"hidden":true,"merged":[]}
[23]
["Fld_nbr","Value","Desc_1","Desc_2","Desc_3","Desc_4","Desc_5","Desc_6","Desc_7"]
[1,{"$f":"IF('Tex-140'!$B$32=\"\",\"\",'Tex-140'!$B$32)","v":""},{"$f":"'Tex-140'!$B$31","v":"Remarks:"}]
[2,{"$f":"IF('Tex-140'!$G$19=\"\",\"\",'Tex-140'!$G$19)","v":""},{"$f":"IF('Tex-140'!$B$19=\"\",\"\",'Tex-140'!$B$19)","v":"COURSE\\LIFT:"}]
[3,{"$f":"IF('Tex-140'!$D$36=\"\",\"\",'Tex-140'!$D$36)","v":""},"Tested By ",{"$f":"IF('Tex-140'!$B$36=\"\",\"\",'Tex-140'!$B$36)","v":"TX140"}]
[4,{"$f":"IF('Tex-140'!$O$36=\"\",\"\",'Tex-140'!$O$36)","v":""},"Tested Date ",{"$f":"IF('Tex-140'!$B$36=\"\",\"\",'Tex-140'!$B$36)","v":"TX140"}]
[5,{"$f":"IF('Tex-140'!$D$25=\"\",\"\",'Tex-140'!$D$25)","v":""},{"$f":"IF('Tex-140'!$B$6=\"\",\"\",'Tex-140'!$B$6)","v":"Tex-140-E"},{"$f":"IF('Tex-140'!$D$23=\"\",\"\",'Tex-140'!$D$23)","v":"Date"}]
[6,{"$f":"IF('Tex-140'!$D$26=\"\",\"\",'Tex-140'!$D$26)","v":""},{"$f":"IF('Tex-140'!$B$6=\"\",\"\",'Tex-140'!$B$6)","v":"Tex-140-E"},{"$f":"IF('Tex-140'!$D$23=\"\",\"\",'Tex-140'!$D$23)","v":"Date"},{"$f":"IF('Tex-140'!$R$23=\"\",\"\",'Tex-140'!$R$23)","v":"SET"},{"$f":"IF('Tex-140'!$R$26=\"\",\"\",'Tex-140'!$R$26)","v":2}]
[7,{"$f":"IF('Tex-140'!$D$27=\"\",\"\",'Tex-140'!$D$27)","v":""},{"$f":"IF('Tex-140'!$B$6=\"\",\"\",'Tex-140'!$B$6)","v":"Tex-140-E"},{"$f":"IF('Tex-140'!$D$23=\"\",\"\",'Tex-140'!$D$23)","v":"Date"},{"$f":"IF('Tex-140'!$R$23=\"\",\"\",'Tex-140'!$R$23)","v":"SET"},{"$f":"IF('Tex-140'!$R$27=\"\",\"\",'Tex-140'!$R$27)","v":3}]
[8,{"$f":"IF('Tex-140'!$F$25=\"\",\"\",'Tex-140'!$F$25)","v":""},{"$f":"IF('Tex-140'!$B$6=\"\",\"\",'Tex-140'!$B$6)","v":"Tex-140-E"},{"$f":"IF('Tex-140'!$F$23=\"\",\"\",'Tex-140'!$F$23)","v":"Station"}]
[9,{"$f":"IF('Tex-140'!$F$26=\"\",\"\",'Tex-140'!$F$26)","v":""},{"$f":"IF('Tex-140'!$B$6=\"\",\"\",'Tex-140'!$B$6)","v":"Tex-140-E"},{"$f":"IF('Tex-140'!$F$23=\"\",\"\",'Tex-140'!$F$23)","v":"Station"},{"$f":"IF('Tex-140'!$R$23=\"\",\"\",'Tex-140'!$R$23)","v":"SET"},{"$f":"IF('Tex-140'!$R$26=\"\",\"\",'Tex-140'!$R$26)","v":2}]
[10,{"$f":"IF('Tex-140'!$F$27=\"\",\"\",'Tex-140'!$F$27)","v":""},{"$f":"IF('Tex-140'!$B$6=\"\",\"\",'Tex-140'!$B$6)","v":"Tex-140-E"},{"$f":"IF('Tex-140'!$F$23=\"\",\"\",'Tex-140'!$F$23)","v":"Station"},{"$f":"IF('Tex-140'!$R$23=\"\",\"\",'Tex-140'!$R$23)","v":"SET"},{"$f":"IF('Tex-140'!$R$27=\"\",\"\",'Tex-140'!$R$27)","v":3}]
[11,{"$f":"IF('Tex-140'!$H$25=\"\",\"\",'Tex-140'!$H$25)","v":""},{"$f":"IF('Tex-140'!$B$6=\"\",\"\",'Tex-140'!$B$6)","v":"Tex-140-E"},{"$f":"IF('Tex-140'!$H$23=\"\",\"\",'Tex-140'!$H$23)","v":"Ref. Marker"}]
[12,{"$f":"IF('Tex-140'!$H$26=\"\",\"\",'Tex-140'!$H$26)","v":""},{"$f":"IF('Tex-140'!$B$6=\"\",\"\",'Tex-140'!$B$6)","v":"Tex-140-E"},{"$f":"IF('Tex-140'!$H$23=\"\",\"\",'Tex-140'!$H$23)","v":"Ref. Marker"},{"$f":"IF('Tex-140'!$R$23=\"\",\"\",'Tex-140'!$R$23)","v":"SET"},{"$f":"IF('Tex-140'!$R$26=\"\",\"\",'Tex-140'!$R$26)","v":2}]
[13,{"$f":"IF('Tex-140'!$H$27=\"\",\"\",'Tex-140'!$H$27)","v":""},{"$f":"IF('Tex-140'!$B$6=\"\",\"\",'Tex-140'!$B$6)","v":"Tex-140-E"},{"$f":"IF('Tex-140'!$H$23=\"\",\"\",'Tex-140'!$H$23)","v":"Ref. Marker"},{"$f":"IF('Tex-140'!$R$23=\"\",\"\",'Tex-140'!$R$23)","v":"SET"},{"$f":"IF('Tex-140'!$R$27=\"\",\"\",'Tex-140'!$R$27)","v":3}]
[14,{"$f":"IF('Tex-140'!$K$25=\"\",\"\",'Tex-140'!$K$25)","v":""},{"$f":"IF('Tex-140'!$B$6=\"\",\"\",'Tex-140'!$B$6)","v":"Tex-140-E"},{"$f":"IF('Tex-140'!$K$23=\"\",\"\",'Tex-140'!$K$23)","v":"Direction/Location"}]
[15,{"$f":"IF('Tex-140'!$K$26=\"\",\"\",'Tex-140'!$K$26)","v":""},{"$f":"IF('Tex-140'!$B$6=\"\",\"\",'Tex-140'!$B$6)","v":"Tex-140-E"},{"$f":"IF('Tex-140'!$K$23=\"\",\"\",'Tex-140'!$K$23)","v":"Direction/Location"},{"$f":"IF('Tex-140'!$R$23=\"\",\"\",'Tex-140'!$R$23)","v":"SET"},{"$f":"IF('Tex-140'!$R$26=\"\",\"\",'Tex-140'!$R$26)","v":2}]
[16,{"$f":"IF('Tex-140'!$K$27=\"\",\"\",'Tex-140'!$K$27)","v":""},{"$f":"IF('Tex-140'!$B$6=\"\",\"\",'Tex-140'!$B$6)","v":"Tex-140-E"},{"$f":"IF('Tex-140'!$K$23=\"\",\"\",'Tex-140'!$K$23)","v":"Direction/Location"},{"$f":"IF('Tex-140'!$R$23=\"\",\"\",'Tex-140'!$R$23)","v":"SET"},{"$f":"IF('Tex-140'!$R$27=\"\",\"\",'Tex-140'!$R$27)","v":3}]
[17,{"$f":"IF('Tex-140'!$N$25=\"\",\"\",'Tex-140'!$N$25)","v":""},{"$f":"IF('Tex-140'!$B$6=\"\",\"\",'Tex-140'!$B$6)","v":"Tex-140-E"},{"$f":"IF('Tex-140'!$N$23=\"\",\"\",'Tex-140'!$N$23)","v":"Description"}]
[18,{"$f":"IF('Tex-140'!$N$26=\"\",\"\",'Tex-140'!$N$26)","v":""},{"$f":"IF('Tex-140'!$B$6=\"\",\"\",'Tex-140'!$B$6)","v":"Tex-140-E"},{"$f":"IF('Tex-140'!$N$23=\"\",\"\",'Tex-140'!$N$23)","v":"Description"},{"$f":"IF('Tex-140'!$R$23=\"\",\"\",'Tex-140'!$R$23)","v":"SET"},{"$f":"IF('Tex-140'!$R$26=\"\",\"\",'Tex-140'!$R$26)","v":2}]
[19,{"$f":"IF('Tex-140'!$N$27=\"\",\"\",'Tex-140'!$N$27)","v":""},{"$f":"IF('Tex-140'!$B$6=\"\",\"\",'Tex-140'!$B$6)","v":"Tex-140-E"},{"$f":"IF('Tex-140'!$N$23=\"\",\"\",'Tex-140'!$N$23)","v":"Description"},{"$f":"IF('Tex-140'!$R$23=\"\",\"\",'Tex-140'!$R$23)","v":"SET"},{"$f":"IF('Tex-140'!$R$27=\"\",\"\",'Tex-140'!$R$27)","v":3}]
[20,{"$f":"IF('Tex-140'!$S$25=\"\",\"\",'Tex-140'!$S$25)","v":""},{"$f":"IF('Tex-140'!$B$6=\"\",\"\",'Tex-140'!$B$6)","v":"Tex-140-E"},{"$f":"IF('Tex-140'!$S$23=\"\",\"\",'Tex-140'!$S$23)","v":"Depth "},{"$f":"IF('Tex-140'!$R$23=\"\",\"\",'Tex-140'!$R$23)","v":"SET"},{"$f":"IF('Tex-140'!$R$25=\"\",\"\",'Tex-140'!$R$25)","v":1}]
[21,{"$f":"IF('Tex-140'!$S$26=\"\",\"\",'Tex-140'!$S$26)","v":""},{"$f":"IF('Tex-140'!$B$6=\"\",\"\",'Tex-140'!$B$6)","v":"Tex-140-E"},{"$f":"IF('Tex-140'!$S$23=\"\",\"\",'Tex-140'!$S$23)","v":"Depth "},{"$f":"IF('Tex-140'!$R$23=\"\",\"\",'Tex-140'!$R$23)","v":"SET"},{"$f":"IF('Tex-140'!$R$26=\"\",\"\",'Tex-140'!$R$26)","v":2}]
[22,{"$f":"IF('Tex-140'!$S$27=\"\",\"\",'Tex-140'!$S$27)","v":""},{"$f":"IF('Tex-140'!$B$6=\"\",\"\",'Tex-140'!$B$6)","v":"Tex-140-E"},{"$f":"IF('Tex-140'!$S$23=\"\",\"\",'Tex-140'!$S$23)","v":"Depth "},{"$f":"IF('Tex-140'!$R$23=\"\",\"\",'Tex-140'!$R$23)","v":"SET"},{"$f":"IF('Tex-140'!$R$27=\"\",\"\",'Tex-140'!$R$27)","v":3}]
[23,{"$f":"IF('Tex-140'!$S$29=\"\",\"\",'Tex-140'!$S$29)","v":""},{"$f":"IF('Tex-140'!$B$6=\"\",\"\",'Tex-140'!$B$6)","v":"Tex-140-E"},{"$f":"IF('Tex-140'!$P$29=\"\",\"\",'Tex-140'!$P$29)","v":"Average Depth:"}]

{"sheet":"Revisions","index":2,"n_rows":2,"n_cols":11,"rows_kept":2,"cut":false,"hidden":true,"merged":[[36,1,36,9],[37,1,37,9],[38,1,38,9],[39,1,39,9],[30,1,30,9],[31,1,31,9],[32,1,32,9],[33,1,33,9],[34,1,34,9],[35,1,35,9],[29,1,29,9],[18,1,18,9],[19,1,19,9],[20,1,20,9],[21,1,21,9],[22,1,22,9],[23,1,23,9],[24,1,24,9],[25,1,25,9],[26,1,26,9],[27,1,27,9],[28,1,28,9],[17,1,17,9],[6,1,6,9],[7,1,7,9],[8,1,8,9],[9,1,9,9],[10,1,10,9],[11,1,11,9],[12,1,12,9],[13,1,13,9],[14,1,14,9],[15,1,15,9],[16,1,16,9],[5,1,5,9],[0,1,0,9],[1,1,1,9],[2,1,2,9],[3,1,3,9],[4,1,4,9]]}
["DATE","DESCRIPTION",null,null,null,null,null,null,null,null,"BY"]
["2016-10-06","Remove SDEWITT from workbook",null,null,null,null,null,null,null,null,"CPFEIFF"]